Cogmind - Beta 16 @@@ ROGUE MODE // 2025.10.20 @ 23:25:06 Player: jumpy Result: Destroyed by D-53 Grenadier with Mini Grenade Launcher Performance ------------- Evolutions (0) 0 Regions Visited (2) 400 Robots Destroyed (7) 35 Value Destroyed (57) 57 Prototype IDs (0) 0 Alien Tech Used (0) 0 Bonus (0) 0 TOTAL SCORE: 492 Bonus ------- None Cogmind --------- Core Integrity 0/250 Matter 231/300 Energy 99/100 System Corruption 6% Temperature Cool (0) Movement Core (50) Location -10/Mines Parts ------- > --- POWER (1) -------- (None) > --- PROPULSION (2) --- (None) > --- UTILITY (2) ------ (None) > --- WEAPON (2) ------- (None) > --- INVENTORY (5) ---- Wheel Wheel Improved Terrain Scanner Seismic Detector Mining Laser Peak State ------------ > --- POWER ------------ Light Ion Engine > --- PROPULSION ------- Light Treads Light Treads > --- UTILITY ---------- Small Storage Unit Seismic Detector > --- WEAPON ----------- Medium Laser Assault Rifle > --- INVENTORY -------- Light Ion Engine Wheel Wheel Improved Terrain Scanner Seismic Detector Mining Laser [Rating: 7] Favorites ----------- Power Light Ion Engine Engine Light Ion Engine Propulsion Light Treads Treads Light Treads Leg Aluminum Leg Utility Small Storage Unit Device Seismic Detector Storage Small Storage Unit Weapon Assault Rifle Energy Gun Medium Laser Ballistic Gun Assault Rifle Build | -11 -10 -10 ------- Run | Yrd Mat Min Slots Evolved . | . . . Power . | . . . Propulsion . | . . . Utility . | . . . Weapon . | . . . Parts Attached 9 | 8 1 . Power 1 | 1 . . Engine 1 | 1 . . Core . | . . . Reactor . | . . . Propulsion 4 | 4 . . Treads 2 | 2 . . Leg 2 | 2 . . Wheel . | . . . Hover . | . . . Flight . | . . . Utility 2 | 2 . . Device 1 | 1 . . Storage 1 | 1 . . Processor . | . . . Hackware . | . . . Protection . | . . . Artifact . | . . . Weapon 2 | 1 1 . Energy Gun 1 | . 1 . Energy Cannon . | . . . Ballistic Gun 1 | 1 . . Ballistic Cannon . | . . . Launcher . | . . . Special Weapon . | . . . Impact Weapon . | . . . Slashing Weapon . | . . . Piercing Weapon . | . . . Special Melee Weapon . | . . . Unidentified Prototypes . | . . . Parts Lost 2 | . . 2 Power 1 | . . 1 Propulsion 1 | . . 1 Utility . | . . . Weapon . | . . . Highest Loss Streak 2 | . . 2 To Critical Strikes . | . . . Average Backups 4 | 3 6 5 Power . | . 1 . Propulsion 1 | 1 2 2 Utility 1 | . 2 2 Weapon . | . 1 1 Tool/Special . | . . . Unused Backups 4 | . . 4 Power 1 | . . 1 Propulsion 2 | . . 2 Utility . | . . . Weapon 1 | . . 1 Tool/Special . | . . . Average Slot Usage (%) 80 | . 93 40 Engine 11 | . 14 4 Treads 24 | . 28 12 Device 12 | . 14 6 Storage 12 | . 14 6 Energy Gun 7 | . 7 6 Ballistic Gun 12 | . 14 6 Peak Build Rating 7 | 6 7 7 Average Rating 5 | 4 6 2 On Entrance 4 | . 6 7 Avg Prop Armor Cover (%) . | . . . Naked Turns 38 | . . 38 Heaviest Build 13 | 11 13 13 Greatest Support 40 | 40 40 40 Greatest Overweight (x) . | . . . Average Overweight (x) . | . . . Largest Inventory Capacity 8 | 8 8 8 Average Capacity 7 | 7 8 6 Most Carried 6 | 6 6 6 Average Carried 4 | 3 6 5 Final Capacity 8 | 8 8 5 Final Carried 6 | 6 6 5 Class Distribution -------------------- 100% | Mutant Dominant Class ---------------- Mutant | -10/Materials Mutant | -10/Mines Resources | -11 -10 -10 ----------- Run | Yrd Mat Min Matter Collected 325 | 309 16 . Remotely . | . . . Salvage Created 209 | 131 40 38 Parts 16 | 11 5 . Haulers Intercepted . | . . . Recyclers Shooed 1 | 1 . . Parts Field Recycled . | . . . Retrieved Matter . | . . . Parts Self-Destructed . | . . . Prevented . | . . . Parts Restored . | . . . Kills | -11 -10 -10 ------- Run | Yrd Mat Min Combat Hostiles Destroyed 6 | . 3 3 Guns 6 | . 3 3 Classes Destroyed 4 | 2 1 1 Tunneler 3 | 3 . . Recycler 1 | 1 . . Swarmer 3 | . 3 . Assembled 3 | . . 3 Best Kill Streak 3 | 2 3 3 Combat Bots Only 3 | . 3 3 Max Kills in Single Turn 1 | 1 1 1 Gunslinging . | . . . Exploded . | . . . Melee . | . . . Uniques/NPCs Destroyed . | . . . Combat | -11 -10 -10 -------- Run | Yrd Mat Min Hostile Shots Fired 60 | . 16 44 Missed 16 | . 5 11 Hits 44 | . 11 33 Melee 5 | . . 5 Projectile 39 | . 11 28 AOE 5 | . . 5 Critical Strikes 1 | . . 1 Damage Taken 717 | . 94 623 Core 262 | . 26 236 Absorbed by Shields . | . . . Core Remaining (%) 100 | 100 . . Volleys Fired 36 | 21 9 6 Largest 2 | 1 2 2 Hottest 70 | 20 70 70 Shots Fired 51 | 21 18 12 Gun 51 | 21 18 12 Cannon . | . . . Launcher . | . . . Special . | . . . Kinetic 36 | 21 9 6 Thermal 15 | . 9 6 Explosive . | . . . Electromagnetic . | . . . Robot Hit Streak 5 | 5 4 5 Robot Miss Streak 2 | 1 2 1 Penetration Max . | . . . Secondary Targets 2 | . . 2 Max Gunslinging Chain 1 | . . 1 Shots Hit Robots 33 | 14 10 9 Core Hits 14 | 5 3 6 Critical Kills . | . . . Critical Parts Destroyed . | . . . Critical Strikes 1 | . . 1 Burn 1 | . . 1 Melee Attacks . | . . . Impact . | . . . Slashing . | . . . Piercing . | . . . Sneak Attacks . | . . . Combat Hostiles . | . . . Follow-up Attacks . | . . . Damage Inflicted 453 | 187 141 125 Guns 453 | 187 141 125 Cannons . | . . . Explosions . | . . . Melee . | . . . Ramming . | . . . Kinetic 314 | 187 52 75 Thermal 139 | . 89 50 Explosive . | . . . Electromagnetic . | . . . Impact . | . . . Slashing . | . . . Piercing . | . . . Highest Corruption 6 | . 1 6 Average Corruption 2 | . 1 5 Corruption Purged . | . . . Corruption Blocked . | . . . Effects 2 | . . 2 Heat Flow Errors 1 | . . 1 Data Loss (minor) 1 | . . 1 Overload Shots . | . . . Overflow Damage . | . . . Projectiles . | . . . Explosions . | . . . Melee . | . . . Knockbacks . | . . . Impact . | . . . Kinetic . | . . . Secondary . | . . . Self-Inflicted Damage . | . . . Shots . | . . . Rammed 1 | 1 . . Targets Rammed 1 | 1 . . Kicked . | . . . Crushed . | . . . Highest Temperature 185 | . 81 185 Average Temperature 40 | . 41 38 Received Heat Transfer 104 | . 24 80 Siege Activations . | . . . Martial Activations . | . . . Shielding Activations . | . . . Robots Disrupted . | . . . Combat Hostiles . | . . . Robots Corrupted . | . . . Combat Hostiles . | . . . Parts Fried . | . . . Impact Corruptions . | . . . Robots Melted . | . . . Combat Hostiles . | . . . Parts Melted . | . . . Heat Transferred 481 | . 259 222 Parts Sabotaged . | . . . Parts Stolen . | . . . Parts Stripped . | . . . Power Chain Reactions . | . . . Alert | -11 -10 -10 ------- Run | Yrd Mat Min Maximum Alert Level . | . . . Low Security (%) 100 | 100 100 100 Level 1 . | . . . Level 2 . | . . . Level 3 . | . . . Level 4 . | . . . Level 5 . | . . . High Security . | . . . Max Security . | . . . Peak Influence 60 | 5 60 11 Initial 11 | . . 11 Average 7 | . 18 1 Influence Increases 95 | 20 75 . Destroy 0b10 Robot/C 60 | . 60 . Destroy 0b10 Robot/NC 20 | 20 . . Destroy Leader 10 | . 10 . Successful Hack 5 | . 5 . Influence Decreases 95 | 20 45 30 Entered New Map 19 | . . 19 Time Decay 66 | 20 45 1 Lost Part 10 | . . 10 Squads Dispatched 1 | . 1 . Investigation . | . . . Extermination . | . . . Reinforcement 1 | . 1 . Assault . | . . . Garrison . | . . . Intercept . | . . . Searches Triggered . | . . . Construction Impeded . | . . . Haulers Reinforced . | . . . Active Scanning Responses . | . . . Cargo Convoy Interrupts . | . . . Stealth | -11 -10 -10 --------- Run | Yrd Mat Min Distress Signals . | . . . Communications Jammed . | . . . Distress Signals . | . . . Times Spotted 30 | . 8 22 Peak Tracking Total 20 | . 4 20 Tactical Retreats . | . . . Traps | -11 -10 -10 ------- Run | Yrd Mat Min Traps Triggered 1 | . 1 . Indirectly . | . . . Trap Hack Attempts . | . . . Triggered . | . . . Disarmed . | . . . Reprogrammed . | . . . Reused . | . . . Traps Extracted . | . . . Installed . | . . . Triggered . | . . . Machines | -11 -10 -10 ---------- Run | Yrd Mat Min Machines Disabled . | . . . Max in Single Turn . | . . . Machines Repaired . | . . . Machines Dismantled . | . . . Machines Sabotaged . | . . . Overloaded Fab Kills . | . . . Hacking | -11 -10 -10 --------- Run | Yrd Mat Min Machines Accessed 2 | . 2 . Terminals 2 | . 2 . Fabricators . | . . . Repair Stations . | . . . Recycling Units . | . . . Scanalyzers . | . . . Garrison Access . | . . . Total Hacks 4 | . 4 . Successful 3 | . 3 . Failed 1 | . 1 . Catastrophic . | . . . Database Lockouts . | . . . Manual . | . . . Terminals 4 | . 4 . Fabricators . | . . . Repair Stations . | . . . Recycling Units . | . . . Scanalyzers . | . . . Garrison Access . | . . . Terminal Hacks 3 | . 3 . Locate Traps 1 | . 1 . Registered Components 1 | . 1 . Zone Layout 1 | . 1 . Fabricator Hacks . | . . . Repair Station Hacks . | . . . Recycling Unit Hacks . | . . . Scanalyzer . | . . . Garrison Access Hacks . | . . . Unauthorized Hacks . | . . . Terminals . | . . . Fabricators . | . . . Repair Stations . | . . . Recycling Units . | . . . Scanalyzers . | . . . Garrison Access . | . . . Data Cores Recovered . | . . . Used . | . . . Hacking Detections 2 | . 2 . Full Trace Events . | . . . Feedback Events . | . . . Feedback Blocked . | . . . Robot Schematics Acquired . | . . . Robots Built . | . . . Authchips . | . . . Time . | . . . Total Robot Build Rating . | . . . Part Schematics Acquired . | . . . Parts Built . | . . . Authchips . | . . . Time . | . . . Total Part Build Rating . | . . . Part Studies Acquired . | . . . Parts Repaired . | . . . Time . | . . . Parts Recycled . | . . . Recycled Matter . | . . . Retrieved Matter . | . . . Retrieved Components . | . . . Parts Scanalyzed . | . . . Part Schematics Acquired . | . . . Parts Damaged . | . . . Bothacking | -11 -10 -10 ------------ Run | Yrd Mat Min Used RIF Installer . | . . . Robots Hacked . | . . . Non-combat . | . . . Combat . | . . . Robot Hacks Applied . | . . . Relay Couplers Released . | . . . Fabnet Peak Effective % . | . . . Robots Rewired . | . . . Allies Hacked . | . . . Hacks Repelled . | . . . Allies | -11 -10 -10 -------- Run | Yrd Mat Min Total Allies . | . . . Largest Group . | . . . Highest-Rated Group . | . . . Highest-Rated Ally . | . . . Total Orders . | . . . Ally Attacks . | . . . Total Damage . | . . . Kills . | . . . Allies Corrupted . | . . . Allies Melted . | . . . Intel | -11 -10 -10 ------- Run | Yrd Mat Min Active Infowar (turns) 297 | 68 203 26 Seismic 297 | 68 203 26 Robot Analysis Total . | . . . Derelict Logs Recovered . | . . . Drone Launches . | . . . Drone Recoveries . | . . . Exploration | -11 -10 -10 ------------- Run | Yrd Mat Min Turns Passed 504 | 237 203 64 Spaces Moved 283 | 113 110 60 Core 60 | 4 . 56 Treads 221 | 107 110 4 Legs 2 | 2 . . Wheels . | . . . Hover . | . . . Flight . | . . . Fastest Speed 50 | 50 160 50 Average Speed 136 | 155 160 57 Slowest Speed 160 | 160 160 160 Overloaded Moves . | . . . Propulsion Burnouts . | . . . Robots Hopped . | . . . Potential Cave-ins . | . . . Cave-ins Triggered . | . . . Exploration Rate (%) 21 | 6 35 23 Regions Visited 2 Branch Regions 1 Pre-discovered Areas . | . . . Known Exits Taken . | . . . Unknown Exits Taken 2 | 1 1 . Scrap Searched . | . . . Spaces Dug . | . . . Terrain Destroyed . | . . . Melee . | . . . Projectile . | . . . AOE . | . . . Terrain Rammed . | . . . Walls Destroyed . | . . . Machines Disabled . | . . . Actions | -11 -10 -10 --------- Run | Yrd Mat Min Total 346 | 150 119 77 Wait 10 | . . 10 Move 281 | 112 109 60 Hop . | . . . Pick Up 6 | 6 . . Fast Attach 10 | 8 1 1 Attach . | . . . Detach . | . . . Swap . | . . . Drop 2 | 2 . . Fire 36 | 21 9 6 Melee . | . . . Ram . | . . . Kick . | . . . Crush 1 | 1 . . Escape Stasis . | . . . Rewire . | . . . Trap . | . . . Miscellaneous . | . . . Route ------- -11/Scrapyard -10/Materials -10/Mines History --------- Turn | Location | Event 5 | -11/Scrapyard | Discovered new exit (range 15) 238 | -11/Scrapyard | Entered Materials 315 | -10/Materials | Build established: Mutant 417 | -10/Materials | Discovered new exit (range 15) 441 | -10/Materials | Entered Mines 442 | -10/Mines | Assembled infested the area 467 | -10/Mines | Released all parts (5) 504 | -10/Mines | Core integrity fell below 50% 504 | -10/Mines | Core integrity fell below 20% 505 | -10/Mines | Destroyed by D-53 Grenadier with Mini Grenade Launcher Last Messages --------------- 00456_ System corrupted: Component data lost. 00456_ K-01 Serf collects debris. 00458_ as-04825 destroyed. 00458_ Switching to secondary target: as-84048. 00466_ K-01 Serf collects debris. 00467_ Lgt. Treads destroyed. 00467_ as-19710 destroyed. 00467_ as-48510 destroyed. 00467_ as-31252 destroyed. 00467_ as-93305 destroyed. 00467_ K-01 Serf destroyed. 00467_ Released Sml. Storage Unit. 00467_ Released Lgt. Treads. 00467_ Released Assault Rifle. 00467_ Released Seismic Detector. 00467_ Released Med. Laser. 00476_ System corrupted: Heat flow error (+210). 00504_ K-01 Serf collects debris. 00505_ The unstable cave ceiling collapses. 00505_ D-53 Grenadier destroyed. Map ----- +----------------------------------------------------+ | | | | | | | | | ????????????????????????????????????????? | | ????????????????????????????????????????? | | ????????????????????????????????????????? | | ????????????????????????????????????????? | | ????????????????????????????????????????? | | ????????????????????????????????????????? | | ????????????????????????????????????????? | | ????????????????????????????????????????? | | ????????????????????????????????????????? | | ????????????????????????????????????????? | | ????????????????????????????????????????? | | ????????????????????????????????????????? | | ???????????????????????????????#????????? | | ??????????????????????????#??? ##???????? | | ????????????????????????? ##? ##??????? | | ???????????????????????# ? #??????? | | ????????####???####??? ## #??????? | | ???????## ##??# ##? # #???????? | | ???????# #### = # # #????????? | | ???????# ## # ####??????? | | ???????# # !! [ ???? | | ??????## # @ ! k < ???? | | ?????## ### ##??????????? | | ????## #####???????????? | | ???## % #?????????????? | | ???# d # #????????????? | | ???# # ##????????????? | | ???## ## % " #?????????????? | | ????## ## ### """ #?????????????? | | ?????# #?# """ #?????????????? | | ?????## #?# #?????????????? | | ?????## ####### #?### ###?????????????? | | ????## #?????# #???# $#???????????????? | | ????# ##????# #???? #???????????????? | | ????# ##???# #??????????????????????? | | ????# ###?# ##?????????????????????? | | ????# ### ##????????????????????? | | ???## #????????????????????? | | ???# """ #????????????????????? | | ???# """ ##????????????????????? | | ???## """ ##?????????????????????? | | ????# #??????????????????????? | | ???## #??????????????????????? | | ??## ## #??????????????????????? | | ??# ### ##??????????????????????? | | ?# ######???????????????????????? | +----------------------------------------------------+ Best States ------------- Heat Dissipation 25 Energy Generation 10 Energy Capacity 125 Matter Stores 270 Matter Capacity 300 Sight Range 16 Terrain Scan Density 10 Evasion (%) 50 Recoil Reduction 2 Item Schematics ----------------- None Robot Schematics ------------------ None Fabricated ------------ Nothing Repaired ---------- Nothing Studied --------- None Alien Tech Used ----------------- None Achievements -------------- None Challenges ------------ None Game ------ Seed BiometalHardcellWarhead Manual? 0 Play Time 00:03:39 Cumulative 226.4 hours Start 2025.10.20 @ 23:21:47 End 2025.10.20 @ 23:25:06 Sessions 1 Manual Loads 0 Difficulty Rogue Special Mode None Game No. 529 Rogue 529 Adventurer 0 Explorer 0 Win Type - Total 13 Types 9/0/2/1/1/0/0/0/0/0 Lore% 78 Gallery% 68 Achievement% 43 Wizard Run 0 Options --------- Layout 0 ASCII 0 Keyboard 0 Movement Numpad Keybinds 0 Fullscreen 2 Font 18/Terminus Map View 76x50 Zoom Use 0% Tactical HUD 1 Map Filters NONE Filters SATURATION(100) Steam 1 RUN: 41004c39-4efc-45b1-80d6-bb0c385cf3ba